bitfinex/quotes_ETHUSD_20241104
["timestamp","ask_amount","ask_price","bid_price","bid_amount"]
[1730711494766,0.105934,2462.2,2462.0,1.11866159]
[1730711495131,4.0613,2462.3,2462.0,1.11866159]
[1730711495332,0.105934,2462.2,2462.0,1.11866159]
[1730711495556,4.81797,2462.4,2462.0,5.18034159]
[1730711495787,0.10580517,2462.1,2462.0,1.11866159]
[1730711496092,4.06131,2462.3,2462.0,1.11866159]
[1730711496287,0.105934,2462.2,2462.0,5.18030159]
[1730711496489,4.81805,2462.4,2462.1,0.45856857]
[1730711496789,4.0599,2463.2,2462.2,5.72361911]
[1730711496790,0.10600406,2462.3,2462.2,5.72361911]
[1730711497286,4.06059,2462.7,2462.3,4.06117]
[1730711497486,0.10595056,2462.6,2462.3,4.06117]
[1730711498151,0.10595056,2462.6,2462.4,4.06104]
[1730711498490,4.88992,2462.8,2462.5,0.812221]
[1730711498858,0.10588101,2462.7,2462.5,0.812221]
[1730711499056,4.88992,2462.8,2462.5,0.812221]
[1730711499257,4.16655101,2462.7,2462.2,8.12255]
[1730711499796,4.16655101,2462.7,2462.3,4.06124]
[1730711500988,0.10588101,2462.7,2462.3,4.06119]
[1730711501194,4.16658101,2462.7,2462.3,4.06119]
[1730711501400,4.0607,2462.7,2462.3,4.06119]
[1730711501696,0.10579834,2462.6,2462.4,0.812259]
[1730711502101,0.10579834,2462.6,2462.4,4.873319]
[1730711502273,8.95045,2462.8,2462.4,4.06106]
[1730711502589,0.10583489,2462.7,2462.4,4.06106]
[1730711502969,0.8294,2462.8,2462.4,4.06099]
[1730711503169,0.10565995,2462.6,2462.5,0.70118238]
[1730711503381,4.88981,2462.8,2462.4,8.6715]
[1730711503581,4.88981,2462.8,2462.5,0.95225368]
[1730711503914,0.10585309,2462.7,2462.5,0.95225368]
[1730711504085,4.88981,2462.8,2462.5,0.95225368]
[1730711504412,0.10585309,2462.7,2462.6,4.61024]
[1730711504581,4.05979,2463.2,2462.7,4.06058]
[1730711504782,0.7634,2463.4,2462.7,4.06058]
[1730711504783,4.0602,2463.0,2462.8,1.75389413]
[1730711505009,4.8398,2463.0,2462.7,1.90071757]
[1730711505310,0.09617624,2462.9,2462.8,0.70150179]
[1730711505476,0.09617624,2462.9,2462.8,2.66540075]
[1730711505676,0.09617624,2462.9,2462.8,7.57419184]
[1730711505991,8.87385,2463.4,2462.9,4.06015]
[1730711506170,4.81432,2463.4,2462.9,4.06015]
[1730711506368,8.87383,2463.4,2463.0,0.70190594]
[1730711506574,4.0596,2463.3,2462.9,4.06015]
[1730711506807,4.0596,2463.3,2462.9,4.72581768]
[1730711507771,4.0598,2463.2,2462.9,0.66566768]
[1730711507994,4.05976,2463.2,2462.7,0.84838109]
[1730711508196,4.05976,2463.2,2462.8,0.38027626]
[1730711508197,4.06018,2463.0,2462.8,0.38027626]
[1730711508402,4.83138,2463.0,2462.9,0.38027626]
[1730711509607,4.83138,2463.0,2462.9,1.01416296]
[1730711511442,4.83138,2463.0,2462.9,0.38027626]
[1730711511585,4.83138,2463.0,2462.9,1.71769841]
[1730711511792,0.8042,2463.4,2462.9,2.07973734]
[1730711511982,4.05977,2463.2,2462.9,1.05430976]
[1730711512183,4.05977,2463.2,2462.9,1.75773868]
[1730711512413,0.09645044,2463.1,2462.9,1.75773868]
[1730711512632,0.09645044,2463.1,2462.9,1.05430976]
[1730711512933,4.06008,2463.0,2462.9,1.05430976]
[1730711513083,0.09632318,2463.0,2462.9,1.75793608]
[1730711513429,0.09632318,2463.0,2462.9,0.70362632]
[1730711513606,0.09632318,2463.0,2462.9,1.75793608]
[1730711514200,0.09632318,2463.0,2462.9,2.04764893]
[1730711514403,0.09632318,2463.0,2462.9,8.01320389]
[1730711514587,4.86375,2463.4,2462.9,8.01320389]
[1730711514788,4.86375,2463.4,2463.0,1.75793608]
[1730711514987,0.09673114,2463.3,2463.0,1.75793608]
[1730711515288,4.05965,2463.3,2463.0,0.78270755]
[1730711515509,0.09660244,2463.2,2463.0,0.78270755]
[1730711515736,4.05965,2463.3,2463.0,0.78270755]
[1730711515737,4.05965,2463.3,2463.0,1.83840307]
[1730711515908,4.05965,2463.3,2462.9,2.45619072]
[1730711515909,4.1564868,2463.2,2462.9,2.45619072]
[1730711516228,4.1564868,2463.2,2462.9,1.05569552]
[1730711516397,4.1564868,2463.2,2462.9,1.75950161]
[1730711517133,0.8123,2463.1,2462.9,1.75950161]
[1730711517431,0.09635009,2463.0,2462.9,1.75950161]
[1730711517726,4.15643009,2463.0,2462.9,0.70380609]
[1730711518039,4.15643009,2463.0,2462.7,1.90694533]
[1730711518359,4.15643009,2463.0,2462.7,2.61091586]
[1730711518665,4.15643009,2463.0,2462.8,0.70397053]
[1730711519527,4.15643009,2463.0,2462.7,1.90694533]
[1730711519528,4.06025,2462.9,2462.7,1.90694533]
[1730711519735,4.06025,2462.9,2462.8,0.70416866]
[1730711520265,4.06025,2462.9,2462.7,0.70416866]
[1730711520469,4.87238,2463.1,2462.7,0.70416866]
[1730711520759,8.93246,2463.1,2462.8,0.70416866]
[1730711521119,8.93246,2463.1,2462.9,0.70420365]
[1730711521366,8.93246,2463.1,2462.7,1.90730068]
[1730711521663,4.06011,2463.0,2462.8,0.70420337]
[1730711522659,4.06025,2462.9,2462.8,0.70420337]
[1730711522860,4.06065,2462.7,2462.4,0.8509952]
[1730711523067,4.06074,2462.6,2462.5,0.70444168]
[1730711523272,4.06081,2462.6,2462.5,0.70448235]
[1730711523437,4.06081,2462.6,2462.4,0.70448235]
[1730711523764,4.1560419,2462.6,2462.5,0.70448235]
[1730711523935,5.88868709,2462.6,2462.5,0.70448235]
[1730711524142,4.06107,2462.4,2462.3,1.90771677]
[1730711524340,4.1560341,2462.4,2462.3,0.70450011]
[1730711525027,4.9733341,2462.4,2462.2,0.42424298]
[1730711525228,4.06145,2462.2,2462.0,1.90771677]
[1730711525424,4.06124,2462.3,2462.0,1.90771677]
[1730711525774,4.06157,2462.1,2462.0,1.9075291]
[1730711526073,4.1561476,2462.1,2462.0,0.70436027]
[1730711526230,4.1561476,2462.1,2462.0,1.55535547]
[1730711526539,4.1561476,2462.1,2462.0,0.70436027]
[1730711527828,0.0945776,2462.1,2462.0,0.70436027]
[1730711528023,4.1561476,2462.1,2461.9,1.55535547]
[1730711528254,4.06157,2462.1,2462.0,0.70436027]
[1730711528729,4.06142,2462.2,2462.0,0.70436027]
[1730711528730,4.06032,2462.9,2462.4,4.06097]
[1730711528962,4.06032,2462.9,2462.4,4.06095]
[1730711529267,4.06036,2462.9,2462.5,1.75950993]
[1730711529425,4.06036,2462.9,2462.5,2.61050513]
[1730711529828,4.06058,2462.7,2462.6,0.70380397]
[1730711530026,4.06051,2462.8,2462.6,0.70384146]
[1730711530276,4.06028,2462.9,2462.4,4.9120352]
[1730711530571,4.06028,2462.9,2462.5,1.75955586]
[1730711530740,4.06044,2462.8,2462.5,1.75955586]
[1730711530950,4.06044,2462.8,2462.4,1.90672919]
[1730711531144,4.06037,2462.9,2462.4,6.67155644]
[1730711531463,4.06042,2462.8,2462.5,1.75957124]
[1730711531658,4.06042,2462.8,2462.4,1.90672919]
[1730711531835,4.05959,2463.3,2462.5,4.41341874]
[1730711532034,0.7591,2463.4,2462.8,7.92423874]
[1730711532284,0.7591,2463.4,2462.9,4.76388924]
[1730711532285,4.81855,2463.4,2462.9,4.76388924]
[1730711532485,4.81855,2463.4,2462.9,4.06017]
[1730711532834,0.7591,2463.4,2463.0,4.05996]
[1730711533070,4.05928,2463.5,2463.1,4.76344962]
[1730711533286,4.05911,2463.6,2463.1,8.11969]
[1730711533477,4.05911,2463.6,2463.2,4.05975]
[1730711533982,4.05911,2463.6,2463.1,4.0599]
[1730711534137,4.05911,2463.6,2463.0,2.25309855]
[1730711534138,4.05946,2463.4,2463.0,6.31316855]
[1730711534339,4.05927,2463.5,2463.1,1.75883255]
[1730711534639,4.05927,2463.5,2463.1,5.11520953]
[1730711534839,4.05927,2463.5,2463.1,4.05991]
[1730711535436,4.05901,2463.7,2463.2,4.7631196]
[1730711535640,4.05901,2463.7,2463.1,8.64845555]
[1730711535840,4.05901,2463.7,2463.2,4.76290145]
[1730711536079,4.05901,2463.7,2463.2,4.05963]
[1730711536284,4.05901,2463.7,2463.2,4.91223335]
[1730711536587,4.05933,2463.5,2463.0,1.4004952]
[1730711536756,4.05959,2463.3,2462.9,1.054772]
[1730711537132,8.11897,2463.4,2462.9,5.81818222]
[1730711537381,0.7748,2463.5,2462.8,8.77531394]
[1730711537382,4.0596,2463.3,2462.8,8.77531394]
[1730711537584,4.06026,2462.9,2462.6,0.8509952]
[1730711537752,4.06026,2462.9,2462.6,1.75820715]
[1730711537941,4.06008,2463.1,2462.6,5.81893715]
[1730711538278,4.13901127,2463.0,2462.6,4.06073]
[1730711538993,4.13901127,2463.0,2462.5,0.5495]
[1730711539143,4.13901127,2463.0,2462.6,0.70329501]
[1730711539685,4.13901127,2463.0,2462.6,4.06073]
[1730711540244,4.13901127,2463.0,2462.5,8.93910641]
[1730711540683,4.13901127,2463.0,2462.5,4.87821641]
[1730711540901,4.13901127,2463.0,2462.6,4.76400891]
[1730711541086,4.13901127,2463.0,2462.6,4.0607]
[1730711544791,8.19924127,2463.0,2462.5,4.87826641]
[1730711544999,4.06025,2462.9,2462.6,0.70351068]
[1730711545296,0.07862716,2462.8,2462.6,0.70351068]
[1730711545594,0.07862716,2462.8,2462.7,5.16825771]
[1730711545803,4.05971,2463.3,2462.9,4.06024]
[1730711545959,4.05971,2463.3,2462.9,7.92415874]
[1730711546278,0.07365984,2463.2,2462.9,7.92415874]
[1730711546482,4.05971,2463.3,2462.9,7.92415874]
[1730711546682,0.07365984,2463.2,2462.9,3.86391874]
[1730711546854,4.83096,2463.7,2463.3,4.05953]
[1730711547059,0.07423823,2463.6,2463.3,4.05953]
[1730711547381,0.07423823,2463.6,2463.2,4.41341874]
[1730711547382,4.05912,2463.6,2463.2,4.60924]
[1730711547884,4.13380885,2463.5,2463.2,0.5495]
[1730711548458,4.05944,2463.4,2462.9,4.9112252]
[1730711548659,0.07436218,2463.3,2462.9,4.06023]
[1730711549274,0.07436218,2463.3,2463.0,4.06001]
[1730711551006,4.90532218,2463.3,2462.9,4.06024]
[1730711553710,0.84566218,2463.3,2462.9,4.06024]
[1730711554205,4.8309,2463.3,2462.9,4.06024]
[1730711554513,0.07437745,2463.2,2462.9,4.06015]
[1730711554669,0.7713,2463.3,2462.9,9.07239752]
[1730711554868,0.07437745,2463.2,2462.9,9.07239752]
[1730711555209,0.7713,2463.3,2462.9,5.01224752]
[1730711555507,0.7713,2463.3,2462.9,9.07242752]
[1730711555721,0.0741288,2463.2,2462.9,9.07241752]
[1730711555923,4.05978,2463.2,2462.8,4.06039]
[1730711556120,0.07400009,2463.1,2462.8,4.06039]
[1730711556281,4.05978,2463.2,2462.8,4.06039]
[1730711559686,4.05976,2463.2,2462.8,4.06039]
[1730711560503,4.05976,2463.2,2462.6,5.4611052]
[1730711560823,4.05976,2463.2,2462.4,1.70449189]
[1730711560824,4.88396,2462.8,2462.4,4.9120552]
[1730711560990,4.88396,2462.8,2462.5,1.75827092]
[1730711561330,4.13346512,2462.7,2462.3,5.4617152]
[1730711561627,4.13346512,2462.7,2462.4,1.75837053]
[1730711562133,4.06058,2462.7,2462.4,1.75837053]
[1730711562318,0.07352261,2462.6,2462.4,1.75837053]
[1730711562674,4.88395,2462.8,2462.4,1.75837053]
[1730711563093,0.07371486,2462.7,2462.4,1.75837053]
[1730711563304,0.07371486,2462.7,2462.5,0.70331947]
[1730711563518,0.0735861,2462.6,2462.4,1.05497921]
[1730711563729,4.1343461,2462.6,2462.4,1.75827477]
[1730711564037,4.1343461,2462.6,2462.0,6.18808833]
[1730711564038,4.06153,2462.2,2461.9,2.12936412]
[1730711564345,4.06153,2462.2,2461.7,4.06216]
[1730711564346,0.07250529,2462.1,2461.8,4.06205]
[1730711564696,0.07250529,2462.1,2461.7,4.9132052]
[1730711564896,4.13407529,2462.1,2461.8,1.75825003]
[1730711565999,4.13407529,2462.1,2461.7,5.14865055]
[1730711566334,4.13407529,2462.1,2461.8,0.70313236]
[1730711567514,4.13407529,2462.1,2461.7,5.14865055]
[1730711568202,0.07250529,2462.1,2461.7,5.14865055]
[1730711568401,0.07250529,2462.1,2461.8,2.24786482]
[1730711568607,4.06103,2462.5,2461.8,2.24786482]
[1730711568608,4.06103,2462.5,2462.0,4.61123]
[1730711568802,0.7947,2462.6,2462.0,0.5495]
[1730711569030,0.7947,2462.6,2461.9,5.11587657]
[1730711569031,4.06127,2462.3,2461.9,5.11587657]
[1730711569237,4.06127,2462.3,2461.8,5.10226961]
[1730711569407,4.06127,2462.3,2461.9,0.7027162]
[1730711569612,4.85241,2462.2,2461.8,0.60753203]
[1730711570519,4.85241,2462.2,2461.8,1.36694707]
[1730711570833,4.85241,2462.2,2461.8,4.06206]
[1730711571044,4.06158,2462.1,2461.7,4.48581242]
[1730711571201,4.952945,2462.1,2461.5,0.91192655]
[1730711571401,4.06157,2462.1,2461.7,4.06221]
[1730711572746,4.06157,2462.1,2461.7,4.61171]
[1730711574614,4.06157,2462.1,2461.8,0.60649335]
[1730711574835,4.06157,2462.1,2461.7,4.61171]
[1730711575036,4.06157,2462.1,2461.7,5.63350305]
[1730711575642,0.7909,2462.2,2461.8,4.06205]
[1730711575949,4.06157,2462.1,2461.7,1.57129305]
[1730711576321,8.9139,2462.2,2461.7,5.63341305]
[1730711577338,4.06159,2462.1,2461.7,5.63341305]
[1730711577650,4.06158,2462.1,2461.7,5.63341305]
[1730711578456,4.8524,2462.2,2461.8,4.06206]
[1730711578819,4.06116,2462.4,2461.9,4.06188]
[1730711579019,4.06108,2462.4,2461.9,4.06183]
[1730711579253,8.12229,2462.4,2461.9,4.06183]
[1730711580456,8.12225,2462.4,2462.0,4.06171]
[1730711580677,4.06108,2462.4,2462.0,4.06171]
[1730711581662,8.12226,2462.4,2462.0,4.06171]
[1730711581959,4.06108,2462.4,2462.0,4.06171]
[1730711582125,4.06126,2462.3,2461.9,4.98470671]
[1730711582324,0.7938,2462.1,2461.7,4.6117]
[1730711582525,0.7938,2462.1,2461.7,4.0622]
[1730711582757,4.85543,2462.1,2461.7,4.0622]
[1730711583062,4.13369833,2462.0,2461.6,4.06236]
[1730711583235,0.07194833,2462.0,2461.6,4.06227]
[1730711583423,0.07194833,2462.0,2461.7,4.06222]
[1730711583853,4.06148,2462.2,2461.7,4.06222]
[1730711584016,0.0717964,2461.9,2461.8,4.06203]
[1730711584231,4.06148,2462.2,2461.8,4.06203]
[1730711584433,0.0717964,2461.9,2461.6,0.55236965]
[1730711584653,4.06158,2462.1,2461.7,4.0621]
[1730711584849,4.06144,2462.2,2461.7,4.0621]
[1730711585144,0.07192526,2462.0,2461.7,4.0621]
[1730711585349,0.07205411,2462.1,2461.7,4.0621]
[1730711585655,4.06144,2462.2,2461.7,4.0621]
[1730711585858,0.07192526,2462.0,2461.7,5.02068166]
[1730711586075,4.13364411,2462.1,2461.7,5.02068166]
[1730711586380,4.06159,2462.1,2461.7,5.02068166]
[1730711586536,0.07192526,2462.0,2461.7,8.12421]
[1730711586739,0.07192526,2462.0,2461.7,4.0621]
[1730711586938,4.06144,2462.2,2461.8,4.06205]
[1730711587197,0.0717964,2461.9,2461.8,4.06205]
[1730711587930,4.83596,2462.3,2461.8,4.06205]
[1730711588130,4.06141,2462.2,2461.8,4.06205]
[1730711588331,4.13359295,2462.2,2461.8,4.874465]
[1730711590733,4.06167,2462.1,2461.7,4.0621]
[1730711591074,0.07192372,2462.0,2461.7,4.0621]
[1730711592367,0.07192372,2462.0,2461.7,8.12425]
[1730711592578,0.07192372,2462.0,2461.7,4.0621]
[1730711592739,0.07192372,2462.0,2461.5,5.52383655]
[1730711592740,0.7746,2462.3,2462.0,4.06166]
[1730711593068,0.0729218,2462.2,2461.9,0.5495]
[1730711593369,0.0729218,2462.2,2461.9,4.6113]
[1730711593598,0.07279299,2462.1,2461.9,4.6113]
[1730711593781,4.06131,2462.3,2461.9,5.32553501]
[1730711593961,4.06131,2462.3,2462.0,4.06173]
[1730711594162,0.07288725,2462.2,2461.9,5.32559501]
[1730711594717,0.07275843,2462.1,2462.0,4.06172]
[1730711594858,0.07275843,2462.1,2461.9,5.32562501]
[1730711595064,4.06129,2462.3,2461.9,9.38741501]
[1730711595262,0.07262961,2462.0,2461.9,5.32552501]
[1730711595457,4.06129,2462.3,2461.9,6.02783975]
[1730711595697,0.07262961,2462.0,2461.9,5.32552501]
[1730711595904,4.06129,2462.3,2461.9,6.02791874]
[1730711596075,0.07262961,2462.0,2461.9,5.32552501]
[1730711596401,0.07262961,2462.0,2461.9,6.02792912]
[1730711596901,0.07268492,2462.0,2461.9,6.02792912]
[1730711597197,4.06129,2462.3,2461.9,4.06179]
[1730711597198,0.7613,2462.1,2461.9,4.06179]
[1730711597410,0.07268492,2462.0,2461.9,4.06179]
[1730711597564,0.07268492,2462.0,2461.9,4.76446863]
[1730711597762,4.85729,2462.3,2461.9,4.76446863]
[1730711598010,0.07294255,2462.2,2461.9,4.06179]
[1730711598219,0.07294255,2462.2,2461.9,4.96739808]
[1730711598506,4.85729,2462.3,2461.9,4.96739808]
[1730711598718,0.07277616,2462.1,2461.9,4.96739808]
[1730711598889,0.796,2462.3,2462.0,4.06172]
[1730711599494,4.85515,2462.5,2462.1,4.06155]
[1730711599820,8.91619,2462.5,2462.1,4.06155]
[1730711599985,4.06112,2462.4,2462.0,4.61123]
[1730711601178,4.06124,2462.3,2462.0,0.5495]
[1730711601415,4.06124,2462.3,2462.0,2.30738322]
[1730711601614,4.06124,2462.3,2462.0,1.60422985]
[1730711602181,4.06124,2462.3,2462.0,1.05472985]
[1730711602494,4.06124,2462.3,2462.0,1.75810434]
[1730711602904,0.7568,2462.2,2462.0,1.75810434]
[1730711603107,0.7568,2462.2,2461.9,4.9128652]
[1730711603281,0.7568,2462.2,2462.0,1.05538967]
[1730711604089,4.81822,2462.2,2462.0,1.75918053]
[1730711604607,0.7568,2462.2,2462.0,1.75918053]
[1730711604817,4.85257,2462.5,2462.0,5.82089053]
[1730711605024,4.85257,2462.5,2462.1,4.0615]
[1730711605329,8.91359,2462.5,2462.1,4.0615]
[1730711605826,4.06051,2462.8,2462.2,0.1717259]
[1730711605995,4.06043,2462.8,2462.4,4.061]
[1730711606195,4.06043,2462.8,2462.4,4.78825469]
[1730711607329,4.81724,2462.9,2462.4,4.78825469]
[1730711607520,4.81724,2462.9,2462.5,4.0609]
[1730711607724,0.07118842,2462.8,2462.5,4.0609]
[1730711607926,0.07118842,2462.8,2462.5,4.91087547]
[1730711608635,0.07118842,2462.8,2462.5,0.84997547]
[1730711609132,0.07118842,2462.8,2462.4,4.06099]
[1730711609331,0.07118842,2462.8,2462.5,4.23271357]
[1730711609535,0.07118842,2462.8,2462.6,4.23243139]
[1730711609736,4.0601,2463.0,2462.6,4.06063]
[1730711609896,0.07108077,2462.7,2462.6,4.06063]
[1730711610100,0.07108077,2462.7,2462.6,4.927734]
[1730711610434,0.07108077,2462.7,2462.6,7.71303533]
[1730711610606,0.07108077,2462.7,2462.6,7.41047902]
[1730711610929,4.83816,2463.3,2462.8,4.06026]
[1730711611137,4.83816,2463.3,2462.9,4.06024]
[1730711611330,4.83816,2463.3,2463.0,0.71012616]
[1730711611542,0.7785,2463.3,2463.0,4.77019616]
[1730711612036,4.83814,2463.3,2463.0,0.71012616]
[1730711613454,0.07177972,2463.2,2463.0,0.71012616]
[1730711613746,4.83814,2463.3,2463.0,0.71012616]
[1730711614248,0.07177972,2463.2,2463.0,0.71012616]
[1730711614454,4.83814,2463.3,2463.0,0.71012616]
[1730711614749,0.07177972,2463.2,2463.0,0.71012616]
[1730711614922,0.8217,2463.5,2463.1,4.53695662]
[1730711615261,8.94037,2463.5,2463.1,4.53695662]
[1730711615622,0.8217,2463.5,2463.1,0.47703662]
[1730711615831,4.88096,2463.5,2463.1,4.53692662]
[1730711616826,4.88096,2463.5,2463.1,0.47703662]
[1730711617228,4.88096,2463.5,2463.1,4.53693662]
[1730711617433,4.88096,2463.5,2463.2,0.91464466]
[1730711618747,0.8091,2463.7,2463.2,0.91464466]
[1730711619038,4.05919,2463.6,2463.2,4.05967]
[1730711622635,8.11843,2463.6,2463.2,4.05967]
[1730711622835,4.05919,2463.6,2463.2,4.05967]
[1730711623135,4.05919,2463.6,2463.3,0.405967]
[1730711623542,4.05893,2463.7,2463.4,0.5495]
[1730711623746,4.0587,2463.9,2463.5,4.05922]
[1730711623956,4.0587,2463.9,2463.6,0.460872]
[1730711624389,4.05882,2463.8,2463.6,0.460872]
[1730711625649,0.8004,2463.9,2463.6,0.460872]
[1730711625851,4.85903,2463.9,2463.6,0.460872]
[1730711627566,4.05878,2463.8,2463.6,0.460872]
[1730711628283,4.85903,2463.9,2463.6,0.460872]
[1730711628588,0.07273473,2463.7,2463.6,0.460872]
[1730711628788,4.85903,2463.9,2463.6,0.460872]
[1730711629274,0.07290703,2463.8,2463.7,0.4520132]
[1730711629475,0.07290703,2463.8,2463.6,0.460872]
[1730711631191,4.13173703,2463.8,2463.6,0.460872]
[1730711631388,4.13173703,2463.8,2463.4,4.60883]
[1730711632496,4.13173703,2463.8,2463.4,0.5495]
[1730711632700,4.05901,2463.7,2463.4,0.5495]
[1730711632870,4.05896,2463.7,2463.4,0.5495]
[1730711633060,0.07264975,2463.6,2463.4,0.5495]
[1730711633400,0.07264975,2463.6,2463.4,1.010397]
[1730711633956,4.05896,2463.7,2463.4,0.460897]
[1730711634199,4.05896,2463.7,2463.3,4.05947]
[1730711634392,0.07264975,2463.6,2463.3,4.05947]
[1730711634695,0.07264975,2463.6,2463.4,0.37929769]
[1730711634890,0.07264975,2463.6,2463.5,0.37929769]
[1730711635771,4.13174975,2463.6,2463.5,0.37929769]
[1730711636369,0.07264975,2463.6,2463.5,0.37929769]
[1730711637809,4.88387,2463.5,2463.2,0.63279912]
[1730711637967,4.88387,2463.5,2463.3,0.37969003]
[1730711638163,0.07239242,2463.4,2463.3,0.37969003]
[1730711638377,4.13182242,2463.4,2463.1,0.63285165]
[1730711639513,8.19135242,2463.4,2463.1,0.63285165]
[1730711639714,8.19139242,2463.4,2463.1,0.63285165]
[1730711640014,4.0596,2463.3,2463.1,0.63285165]
[1730711640179,0.07212153,2463.2,2463.1,0.63285165]
[1730711640376,8.11894,2463.4,2463.1,0.63285165]
[1730711640677,0.07225021,2463.3,2463.1,0.63285165]
[1730711640877,4.13191021,2463.3,2462.9,4.06022]
[1730711641092,4.13191021,2463.3,2463.1,0.63352781]
[1730711641511,0.07225021,2463.3,2463.1,0.63352781]
[1730711642619,4.13185021,2463.3,2463.1,0.63352781]
[1730711643413,0.07225021,2463.3,2463.1,0.63352781]
[1730711644323,4.13196021,2463.3,2463.1,0.63352781]
[1730711644620,4.05975,2463.2,2463.0,0.63352781]
[1730711644918,0.0719853,2463.1,2463.0,0.63352781]
[1730711645420,0.0719853,2463.1,2462.9,1.05374139]
[1730711645588,0.0719853,2463.1,2462.9,5.81655553]
[1730711645795,0.0719853,2463.1,2463.0,4.06008]
[1730711645990,4.05943,2463.4,2463.0,0.6337607]
[1730711646334,4.05943,2463.4,2463.0,0.63378166]
[1730711646335,4.05962,2463.3,2463.0,0.63378166]
[1730711646621,4.13184835,2463.3,2463.0,0.63378166]
[1730711647584,4.87315,2463.2,2463.0,0.63378166]
[1730711647893,0.07196645,2463.1,2462.8,0.63378166]
[1730711648497,0.07196645,2463.1,2462.8,2.39276262]
[1730711648682,4.13195645,2463.1,2462.8,1.68916785]
[1730711648881,4.13195645,2463.1,2462.8,1.68917022]
[1730711649086,4.13195645,2463.1,2462.8,0.63377807]
[1730711649087,4.06018,2463.0,2462.8,0.63377807]
[1730711649305,4.06018,2463.0,2462.7,0.63377807]
[1730711649509,0.07170902,2462.9,2462.7,6.45337356]
[1730711649724,0.07170902,2462.9,2462.7,4.69435807]
[1730711649927,4.05996,2463.1,2462.8,0.70359188]
[1730711650085,4.87308,2463.2,2462.8,6.45302676]
[1730711650283,4.87308,2463.2,2462.9,0.70359117]
[1730711650826,4.0596,2463.3,2462.9,5.81904634]
[1730711651016,4.0596,2463.3,2463.0,1.2530619]
[1730711651195,4.0596,2463.3,2463.0,1.60480582]
[1730711651705,4.0596,2463.3,2463.0,1.60484943]
[1730711652083,4.0596,2463.3,2463.0,0.5495]
[1730711652683,4.0596,2463.3,2463.0,1.60487904]
[1730711652918,4.0596,2463.3,2463.0,2.30846418]
[1730711653225,4.0596,2463.3,2463.0,1.60487904]
[1730711653401,4.0596,2463.3,2463.0,1.05537904]
[1730711653582,4.0596,2463.3,2463.0,1.75902828]
[1730711654229,4.05976,2463.2,2463.0,1.75902828]
[1730711654423,4.05976,2463.2,2462.9,2.53934449]
[1730711654594,0.8073,2463.1,2463.0,0.70389126]
[1730711654797,4.86722,2463.1,2462.8,0.63353959]
[1730711654999,4.86722,2463.1,2462.8,2.3933675]
[1730711655204,4.86722,2463.1,2462.9,0.70393116]
[1730711655507,4.86722,2463.1,2462.8,1.05602488]
[1730711655700,4.86722,2463.1,2462.8,1.76004147]
[1730711656190,4.0601,2463.0,2462.8,1.76004147]
[1730711656390,4.0601,2463.0,2462.9,0.70401659]
[1730711656588,4.0601,2463.0,2462.7,2.53991273]
[1730711656589,4.0601,2463.0,2462.8,0.70401659]
[1730711656900,4.0601,2463.0,2462.9,0.70401659]
[1730711657107,4.86725,2463.1,2462.8,0.70401659]
[1730711657287,4.86725,2463.1,2462.9,0.70401659]
[1730711657490,4.86725,2463.1,2462.8,1.05602488]
[1730711657729,4.86725,2463.1,2462.9,0.70404631]
[1730711658025,4.86725,2463.1,2462.8,2.53991273]
[1730711658235,4.05995,2463.1,2462.9,0.70403126]
[1730711658525,0.07183021,2463.0,2462.9,0.70403126]
[1730711658697,0.07183021,2463.0,2462.8,1.76005614]
[1730711658899,0.07183021,2463.0,2462.9,0.70403126]
[1730711659100,0.07183021,2463.0,2462.8,1.76005614]
[1730711659313,0.07183021,2463.0,2462.9,0.70403126]
[1730711660031,0.07183021,2463.0,2462.8,1.76005614]
[1730711660186,0.07183021,2463.0,2462.9,0.70403126]
[1730711660388,0.07183021,2463.0,2462.8,1.75997956]
[1730711660601,0.07183021,2463.0,2462.9,0.70399182]
[1730711661196,0.07183021,2463.0,2462.8,1.75997956]
[1730711661430,0.07183021,2463.0,2462.9,0.70399182]
[1730711661691,0.07183021,2463.0,2462.8,1.75997956]
[1730711661891,0.07183021,2463.0,2462.9,0.70399182]
[1730711662118,0.07183021,2463.0,2462.8,1.75997956]
[1730711667345,0.07183021,2463.0,2462.9,0.70381777]
[1730711667502,0.07183021,2463.0,2462.8,1.05572665]
[1730711667702,0.07183021,2463.0,2462.8,1.75953403]
[1730711668143,4.06025,2462.9,2462.8,1.75953403]
[1730711668352,4.06025,2462.9,2462.8,0.70380738]
[1730711668659,4.13194096,2462.9,2462.7,1.55419587]
[1730711669838,0.07169096,2462.9,2462.7,6.60504987]
[1730711670022,4.85145,2463.1,2462.8,1.75934375]
[1730711670229,0.07181518,2463.0,2462.8,1.75934375]
[1730711671919,4.13196518,2463.0,2462.7,2.89633874]
[1730711672119,4.13196518,2463.0,2462.8,0.70382597]
[1730711672371,4.13196518,2463.0,2462.7,1.90599474]
[1730711672561,4.13196518,2463.0,2462.7,2.60987274]
[1730711672971,4.13196518,2463.0,2462.8,0.703878]
[1730711673323,4.13196518,2463.0,2462.7,1.90599474]
[1730711673524,4.13196518,2463.0,2462.8,0.7039347]
[1730711674632,4.13196518,2463.0,2462.7,1.9064039]
[1730711674868,4.13196518,2463.0,2462.8,0.70401027]
[1730711675328,4.13196518,2463.0,2462.7,1.9064039]
[1730711675565,4.13196518,2463.0,2462.8,0.70408606]
[1730711677470,4.13196518,2463.0,2462.9,0.70408606]
[1730711677820,4.06025,2462.9,2462.7,1.9064039]
[1730711678166,4.83185,2462.9,2462.8,0.70430075]
[1730711678346,4.83185,2462.9,2462.6,1.9064039]
[1730711678554,4.06048,2462.8,2462.7,0.70443483]
[1730711679531,4.06048,2462.8,2462.7,0.70439663]
[1730711680467,4.06048,2462.8,2462.7,1.76099158]
[1730711681363,4.83185,2462.9,2462.7,1.76099158]
[1730711681549,4.83185,2462.9,2462.8,0.70439663]
[1730711682728,4.83185,2462.9,2462.7,1.05701595]
[1730711682958,4.83185,2462.9,2462.8,0.70467743]
[1730711685067,4.83185,2462.9,2462.8,1.76185229]
[1730711685436,4.83185,2462.9,2462.8,1.7619147]
[1730711686828,4.83185,2462.9,2462.8,0.70467743]
[1730711687025,4.83185,2462.9,2462.8,1.7619147]
[1730711688470,4.90351687,2462.9,2462.8,1.7619147]
[1730711689028,4.90351687,2462.9,2462.8,1.76209131]
[1730711689375,4.90351687,2462.9,2462.8,3.00128605]
[1730711689376,0.07166687,2462.9,2462.8,3.00128605]